fUSD/lending_fUSD_20250820
["ID","MTS","AMOUNT","RATE_DAILY","PERIOD"]
[380357036,1755702635457,-9274.81107495,0.00020447,2]
[380357038,1755702635466,-151.0,0.00020447,2]
[380357040,1755702635476,-151.0,0.00020447,2]
[380357042,1755702635485,-500.0,0.00020447,2]
[380357044,1755702635495,-151.0,0.00020447,2]
[380357046,1755702635504,-151.0,0.00020447,2]
[380357048,1755702635513,-500.0,0.00020447,2]
[380357050,1755702635523,-151.0,0.00020447,2]
[380357052,1755702635533,-151.0,0.00020447,2]
[380357054,1755702635543,-1000.0,0.00020447,2]
[380357075,1755702635732,-500.0,0.00020447,2]
[380357077,1755702635744,-151.0,0.00020447,2]
[380357079,1755702635754,-151.0,0.00020447,2]
[380357081,1755702635763,-1000.0,0.00020447,2]
[380357083,1755702635773,-500.0,0.00020447,2]
[380357085,1755702635784,-151.0,0.00020447,2]
[380357087,1755702635794,-151.0,0.00020447,2]
[380357089,1755702635803,-1000.0,0.00020447,2]
[380357091,1755702635817,-500.0,0.00020447,2]
[380357093,1755702635827,-151.0,0.00020447,2]
[380357095,1755702635837,-151.0,0.00020447,2]
[380357097,1755702635847,-1000.0,0.00020447,2]
[380357099,1755702635857,-151.0,0.00020447,2]
[380357101,1755702635867,-151.0,0.00020447,2]
[380357103,1755702635877,-151.0,0.00020447,2]
[380357105,1755702635887,-1000.0,0.00020447,2]
[380357107,1755702635897,-500.0,0.00020447,2]
[380357109,1755702635907,-151.0,0.00020447,2]
[380357111,1755702635916,-151.0,0.00020447,2]
[380357113,1755702635925,-1000.0,0.00020447,2]
[380357115,1755702635935,-500.0,0.00020447,2]
[380357117,1755702635945,-151.0,0.00020447,2]
[380357119,1755702635954,-1000.0,0.00020447,2]
[380357121,1755702635963,-500.0,0.00020447,2]
[380357123,1755702635973,-151.0,0.00020447,2]
[380357126,1755702635983,-277.35679052,0.00020447,2]
[380357128,1755702635992,-1000.0,0.00020447,2]
[380357130,1755702636002,-151.0,0.00020447,2]
[380357132,1755702636012,-1000.0,0.00020447,2]
[380357134,1755702636021,-151.0,0.00020447,2]
[380357136,1755702636030,-1042.07717305,0.00020447,2]
[380357138,1755702636040,-500.0,0.00020447,2]
[380357139,1755702636050,-600.0,0.00020447,2]
[380357141,1755702636063,-600.0,0.00020447,2]
[380357143,1755702636072,-151.0,0.00020447,2]
[380357145,1755702636082,-600.0,0.00020447,2]
[380357148,1755702636091,-600.0,0.00020447,2]
[380357150,1755702636100,-600.0,0.00020447,2]
[380357152,1755702636110,-600.0,0.00020447,2]
[380357154,1755702636120,-600.0,0.00020447,2]
[380357156,1755702636129,-600.0,0.00020447,2]
[380357158,1755702636138,-600.0,0.00020447,2]
[380357160,1755702636148,-600.0,0.00020447,2]
[380357162,1755702636157,-600.0,0.00020447,2]
[380357164,1755702636166,-151.0,0.00020447,2]
[380357166,1755702636175,-203.37727239,0.00020457,2]
[380357168,1755702636184,-50155.70587389,0.00020459,2]
[380357170,1755702636196,-463.47800865,0.00020459,2]
[380357174,1755702636231,-1759.24015614,0.00020459,2]
[380357177,1755702636243,-480.46360534,0.00020459,2]
[380357179,1755702636257,-1772.89613506,0.00020459,2]
[380357180,1755702636298,-7964.00724741,0.00020459,2]
[380357181,1755702636309,-241.33724263,0.00020459,2]
[380357182,1755702636320,-830.84081367,0.00020459,2]
[380357190,1755702639835,-212.04014818,0.00019895,2]
[380357191,1755702639846,-1811.4038737,0.00020459,2]
[380357192,1755702639855,-151.0,0.00020483,2]
[380357193,1755702639864,-500.20040622,0.000205,2]
[380357194,1755702639874,-265.68452024,0.000205,2]
[380357195,1755702639885,-234.31547976,0.000205,2]
[380357196,1755702639894,-205.51937438,0.000205,2]
[380357197,1755702639904,-500.0,0.000205,2]
[380357198,1755702639914,-512.49550954,0.000205,2]
[380357199,1755702639923,-500.0,0.000205,2]
[380357200,1755702639933,-500.0,0.000205,2]
[380357201,1755702639943,-220.17680474,0.000205,2]
[380357202,1755702639953,-160.08041582,0.000205,2]
[380357203,1755702639962,-500.0,0.000205,2]
[380357204,1755702639973,-500.0,0.000205,2]
[380357205,1755702639982,-460.20441576,0.000205,2]
[380357206,1755702640033,-40.16824465,0.000205,2]
[380357207,1755702640043,-430.83168645,0.000205,2]
[380357214,1755702641014,-82.54256565,0.000205,2]
[380357215,1755702641023,-162.24008791,0.000205,2]
[380357216,1755702641032,-500.0,0.000205,2]
[380357217,1755702641042,-500.0,0.000205,2]
[380357218,1755702641051,-500.0,0.000205,2]
[380357219,1755702641060,-77.51734645,0.000205,2]
[380357220,1755702641072,-422.48265355,0.000205,2]
[380357221,1755702641081,-500.0,0.000205,2]
[380357222,1755702641091,-357.24976313,0.000205,2]
[380357223,1755702641103,-142.75023687,0.000205,2]
[380357224,1755702641112,-500.0,0.000205,2]
[380357225,1755702641122,-500.0,0.000205,2]
[380357226,1755702641131,-1704.24002793,0.00020502,2]
[380357227,1755702641151,-2922.15124312,0.00020502,2]
[380357228,1755702641170,-1184.6646,0.00020502,2]
[380357229,1755702641282,-3806.92321368,0.00020502,2]
[380357230,1755702641291,-500.0,0.00020502,2]
[380357231,1755702641301,-1256.09304067,0.00020557,2]
[380357232,1755702641313,-1277.29231165,0.00020557,2]
[380357233,1755702641448,-3561.5,0.00020557,2]
[380357234,1755702641460,-680.40412497,0.00020557,2]
[380357235,1755702641521,-712.5,0.00020557,2]
[380357268,1755702643387,-2486.05483357,0.00020557,2]
[380357270,1755702643397,-500.0,0.00020557,2]
[380357272,1755702643407,-2290.30553109,0.00020612,2]
[380357273,1755702643416,-500.0,0.00020612,2]
[380357274,1755702643425,-1000.0,0.00020637,2]
[380357275,1755702643435,-154.29,0.0002066,2]
[380357276,1755702643444,-500.0,0.00020667,2]
[380357277,1755702643453,-420.0,0.00020709,2]
[380357278,1755702643463,-500.0,0.00020722,2]
[380357279,1755702643472,-388.0,0.00020752,2]
[380357280,1755702643481,-203.37727235,0.00020758,2]
[380357281,1755702643490,-500.0,0.00020777,2]
[380357282,1755702643499,-480.0,0.0002081,2]
[380357283,1755702643509,-500.0,0.00020832,2]
[380357284,1755702643519,-500.0,0.00020887,2]
[380357285,1755702643528,-150.0,0.000209,2]
[380357286,1755702643537,-1000.0,0.00020904,2]
[380357287,1755702643547,-500.0,0.00020942,2]
[380357288,1755702643558,-151.0,0.00020989,2]
[380357289,1755702643568,-151.0,0.00020995,2]
[380357290,1755702643578,-151.0,0.00020995,2]
[380357291,1755702643587,-500.0,0.00020997,2]
[380357292,1755702643596,-3856.37236299,0.00021,2]
[380357296,1755702643737,-1143.62763701,0.00021,2]
[380357298,1755702643747,-400.0,0.00021,2]
[380357300,1755702643756,-151.36884869,0.00021048,2]
[380357306,1755702643938,-2507.94453858,0.0002,2]
[380357307,1755702643949,-7979.97816939,0.0002,2]
[380357309,1755702643959,-348.63115131,0.00021048,2]
[380357310,1755702643968,-203.37727235,0.0002106,2]
[380357311,1755702643978,-506.03200363,0.00021167,2]
[380357312,1755702643987,-500.0,0.00021167,2]
[380357313,1755702643997,-349.0838619,0.00021178,2]
[380357319,1755702646481,-255.02317439,0.00021178,2]
[380357320,1755702646493,-495.89296371,0.00021178,2]
[380357321,1755702646503,-500.0,0.00021178,2]
[380357322,1755702646513,-64.05627906,0.00021332,2]
[380357323,1755702646525,-359.88741448,0.00021332,2]
[380357324,1755702646538,-549.2636643,0.00021332,2]
[380357325,1755702646551,-648.08847799,0.00021339,2]
[380357326,1755702646571,-203.37727235,0.00021361,2]
[380357327,1755702646592,-486.78592441,0.00021474,2]
[380357328,1755702646792,-1187.5330515,0.00021474,2]
[380357329,1755702646804,-969.68102409,0.00021474,2]
[380357330,1755702646814,-151.0,0.00021543,2]
[380357331,1755702646826,-2644.0,0.00021572,2]
[380357332,1755702646835,-15203.96879802,0.00021597,2]
[380357333,1755702646878,-3376.75958398,0.00021597,2]
[380357334,1755702646896,-2500.0,0.000216,2]
[380357335,1755702646908,-1000.0,0.000216,2]
[380357336,1755702646918,-203.37727235,0.00021663,2]
[380357337,1755702646928,-646.87271664,0.00021666,2]
[380357338,1755702646938,-40371.11,0.000217,2]
[380357339,1755702646948,-1000.0,0.00021723,2]
[380357340,1755702646958,-150.0,0.00021732,2]
[380357341,1755702646980,-150.0,0.00021735,2]
[380357342,1755702646995,-777.69585133,0.00021735,2]
[380357343,1755702647008,-150.0,0.00021742,2]
[380357344,1755702647030,-2644.0,0.00021746,2]
[380357345,1755702647045,-150.0,0.00021754,2]
[380357346,1755702647055,-1000.0,0.0002176,2]
[380357347,1755702647064,-150.0,0.00021762,2]
[380357348,1755702647076,-150.0,0.00021763,2]
[380357349,1755702647085,-1000.0,0.00021776,2]
[380357350,1755702647095,-242.61817469,0.00021777,2]
[380357351,1755702647104,-2644.0,0.00021779,2]
[380357352,1755702647113,-200.0,0.00021791,2]
[380357353,1755702647123,-1000.0,0.00021799,2]
[380357354,1755702647615,-1000.0,0.00021799,2]
[380357355,1755702647624,-162.95282606,0.000218,2]
[380357356,1755702647636,-1425.0,0.000218,2]
[380357357,1755702647647,-1000.0,0.000218,2]
[380357358,1755702647657,-198.65552247,0.000218,2]
[380357359,1755702647666,-3634.0,0.000218,3]
[380357360,1755702647675,-150.0,0.00021805,2]
[380357361,1755702647685,-150.0,0.00021814,2]
[380357362,1755702647700,-2644.0,0.00021815,2]
[380357363,1755702647716,-334.5472959,0.00021816,2]
[380357364,1755702647726,-287.61899177,0.00021816,2]
[380357365,1755702647737,-225.0,0.00021816,2]
[380357366,1755702647746,-150.0,0.00021829,2]
[380357367,1755702647756,-1425.0,0.00021834,2]
[380357368,1755702647766,-150.0,0.00021844,2]
[380357369,1755702647776,-1425.0,0.00021845,2]
[380357370,1755702647786,-150.0,0.00021848,2]
[380357371,1755702647795,-1000.0,0.0002185,2]
[380357372,1755702647805,-4145.9208995,0.00021851,2]
[380357373,1755702647814,-1000.0,0.00021864,2]
[380357374,1755702647825,-150.0,0.00021866,2]
[380357375,1755702647835,-1000.0,0.00021869,2]
[380357376,1755702647844,-500.0,0.00021873,2]
[380357377,1755702647853,-500.53880452,0.00021873,2]
[380357378,1755702647863,-150.0,0.00021878,2]
[380357379,1755702647872,-734.79532838,0.00021878,2]
[380357380,1755702647882,-791.57872967,0.00021879,2]
[380357381,1755702647892,-1008.87485154,0.00021881,2]
[380357382,1755702647901,-1226.17097341,0.00021882,2]
[380357383,1755702647910,-1443.46709528,0.00021883,2]
[380357384,1755702647919,-1660.76321715,0.00021885,2]
[380357385,1755702647928,-1878.05933902,0.00021886,2]
[380357386,1755702647938,-2095.35546089,0.00021887,2]
[380357387,1755702647947,-2312.65158277,0.00021889,2]
[380357388,1755702647957,-2000.0,0.0002189,2]
[380357389,1755702647967,-2529.94770465,0.0002189,2]
[380357390,1755702647977,-1000.0,0.00021892,2]
[380357391,1755702647987,-2644.0,0.00021894,2]
[380357392,1755702647996,-1451.85208965,0.00021898,2]
[380357393,1755702648005,-1000.0,0.00021899,2]
[380357394,1755702648015,-176.15483014,0.00021899,2]
[380357395,1755702648024,-218.57646319,0.00021899,2]
[380357396,1755702648034,-500.0,0.00021899,2]
[380357397,1755702648044,-498.1321881,0.00021899,2]
[380357398,1755702648054,-534.14964688,0.000219,2]
[380357399,1755702648064,-5854.7026,0.000219,2]
[380357400,1755702648076,-141845.51356007,0.000219,2]
[380357401,1755702959055,189.86,0.00025084,120]
[380357404,1755703627425,763.75,0.0002739,120]
[380357501,1755703656048,2000.0,0.00027397,120]
[380357502,1755703757413,1652.32,0.00027397,120]
[380357534,1755703831689,-250.0,0.0001026,2]
[380357536,1755703831699,-566.44593891,0.0001026,2]
[380357538,1755703831709,-300.0,0.00010309,2]
[380357540,1755703831719,-202.63,0.00010359,2]
[380357542,1755703831728,-259.70958276,0.00010359,2]
[380357547,1755703831800,-240.29041724,0.00010359,2]
[380357549,1755703831810,-436.47495778,0.00010359,2]
[380357552,1755703831820,-1200.0,0.00010359,2]
[380357554,1755703831830,-150.0,0.00010359,2]
[380357556,1755703831840,-644.75881136,0.0001036,2]
[380357558,1755703831854,-4384.00680151,0.0001036,2]
[380357560,1755703831868,-86161.2142028,0.0001036,2]
[380357574,1755703832005,-8699.15611154,0.0001036,2]
[380357576,1755703832017,-693.9306,0.0001036,2]
[380357579,1755703832030,-2083.7581737,0.0001036,2]
[380357581,1755703832042,-2491.658184,0.0001036,2]
[380357582,1755703832054,-1160.11559916,0.0001036,2]
[380357591,1755703837510,-286.15,0.0001036,2]
[380357592,1755703837704,-441.0,0.0001036,2]
[380357593,1755703837715,-1103.10063377,0.0001036,2]
[380357594,1755703837786,-1682.2401957,0.0001036,2]
[380357595,1755703837797,-333.794745,0.0001036,2]
[380357596,1755703837991,-176030.32632721,0.0001036,2]
[380357597,1755703838001,-151.0,0.0001036,2]
[380357598,1755703838011,-151.0,0.0001036,2]
[380357599,1755703838020,-151.0,0.0001036,2]
[380357600,1755703838030,-151.0,0.0001036,2]
[380357601,1755703838039,-151.0,0.0001036,2]
[380357602,1755703838049,-302.0,0.0001036,2]
[380357603,1755703838058,-300.0,0.00010555,2]
[380357604,1755703838068,-162.39329534,0.00010899,2]
[380357605,1755703838078,-435.46592101,0.000109,2]
[380357606,1755703838087,-185.00214356,0.000109,2]
[380357607,1755703838097,-190.88464858,0.000109,2]
[380357608,1755703838109,-3155.62561149,0.000109,2]
[380357609,1755703838119,-500.0,0.00010973,2]
[380357610,1755703838129,-500.0,0.00010973,2]
[380357611,1755703838139,-500.0,0.00010973,2]
[380357612,1755703838149,-500.0,0.00010973,2]
[380357613,1755703838158,-500.0,0.00010973,2]
[380357614,1755703838168,-500.0,0.00010973,2]
[380357615,1755703838178,-160.05255456,0.00010973,2]
[380357616,1755703838187,-500.0,0.00010973,2]
[380357617,1755703838197,-500.86208745,0.00010973,2]
[380357618,1755703838207,-500.0,0.00010973,2]
[380357619,1755703838216,-500.0,0.00010973,2]
[380357620,1755703838226,-501.08155073,0.00010973,2]
[380357621,1755703838235,-500.0,0.00010973,2]
[380357622,1755703838245,-500.0,0.00010973,2]
[380357623,1755703838254,-161.71503412,0.00010973,2]
[380357624,1755703838263,-500.0,0.00010973,2]
[380357625,1755703838272,-500.0,0.00010973,2]
[380357626,1755703838282,-501.21799405,0.00010973,2]
[380357627,1755703838301,-343.09119003,0.0001099,2]
[380357628,1755703838313,-343.09119003,0.0001099,2]
[380357629,1755703838322,-343.09119003,0.0001099,2]
[380357630,1755703838332,-250.0,0.00010999,2]
[380357631,1755703838342,-500.0,0.00010999,2]
[380357632,1755703838352,-750.0,0.00010999,2]
[380357633,1755703838362,-1000.0,0.00010999,2]
[380357634,1755703838371,-302.0,0.00010999,2]
[380357635,1755703838381,-153.00352423,0.00010999,2]
[380357636,1755703838391,-500.0,0.00010999,2]
[380357637,1755703838401,-198.69253167,0.00010999,2]
[380357638,1755703838411,-34600.64513145,0.00010999,2]
[380357639,1755703838423,-1336663.80721567,0.00011,2]
[380357640,1755703838432,-173932.43,0.00011,2]
[380357641,1755703838442,-1401694.94220401,0.00011,2]
[380357642,1755703838452,-7985.12,0.00011,2]
[380357643,1755703838462,-443.804494,0.00011,2]
[380357644,1755703838472,-151.0,0.00011,2]
[380357645,1755703838483,-443.804494,0.00011,2]
[380357646,1755703838493,-151.0,0.00011,2]
[380357647,1755703838502,-151.0,0.00011,2]
[380357648,1755703838512,-443.804494,0.00011,2]
[380357649,1755703838523,-151.0,0.00011,2]
[380357650,1755703838532,-443.804494,0.00011,2]
[380357651,1755703838542,-151.0,0.00011,2]
[380357652,1755703838552,-151.0,0.00011,2]
[380357653,1755703838562,-151.0,0.00011,2]
[380357654,1755703838571,-151.0,0.00011,2]
[380357655,1755703838581,-151.0,0.00011,2]
[380357656,1755703838591,-151.0,0.00011,2]
[380357657,1755703838602,-151.0,0.00011,2]
[380357658,1755703838612,-151.488793,0.00011,2]
[380357659,1755703838622,-151.0,0.00011,2]
[380357660,1755703838632,-299.778001,0.00011,2]
[380357661,1755703838642,-151.0,0.00011,2]
[380357662,1755703838652,-151.0,0.00011,2]
[380357663,1755703838662,-151.0,0.00011,2]
[380357664,1755703838671,-151.0,0.00011,2]
[380357665,1755703838681,-299.778001,0.00011,2]
[380357666,1755703838691,-151.0,0.00011,2]
[380357667,1755703838700,-299.778001,0.00011,2]
[380357668,1755703838710,-299.778001,0.00011,2]
[380357669,1755703838720,-159.758689,0.00011,2]
[380357671,1755703838730,-151.0,0.00011,2]
[380357672,1755703838740,-151.0,0.00011,2]
[380357673,1755703838749,-151.0,0.00011,2]
[380357674,1755703838759,-151.0,0.00011,2]
[380357675,1755703838770,-151.0,0.00011,2]
[380357676,1755703838779,-151.0,0.00011,2]
[380357677,1755703838789,-151.0,0.00011,2]
[380357678,1755703838799,-462.198119,0.00011,2]
[380357679,1755703838808,-151.0,0.00011,2]
[380357680,1755703838818,-462.198119,0.00011,2]
[380357681,1755703838827,-151.0,0.00011,2]
[380357682,1755703838837,-151.0,0.00011,2]
[380357683,1755703838848,-462.198119,0.00011,2]
[380357684,1755703838860,-462.198119,0.00011,2]
[380357685,1755703838870,-153.78218,0.00011,2]
[380357686,1755703838880,-243.253298,0.00011,2]
[380357687,1755703838890,-151.0,0.00011,2]
[380357688,1755703838902,-151.0,0.00011,2]
[380357689,1755703838912,-151.0,0.00011,2]
[380357690,1755703838922,-364.588034,0.00011,2]
[380357691,1755703838933,-1670.917246,0.00011,2]
[380357692,1755703838943,-364.588034,0.00011,2]
[380357693,1755703838953,-151.0,0.00011,2]
[380357694,1755703838963,-1670.917246,0.00011,2]
[380357695,1755703838973,-1670.917246,0.00011,2]
[380357696,1755703838983,-364.588034,0.00011,2]
[380357697,1755703838992,-284.593365,0.00011,2]
[380357698,1755703839002,-1670.917246,0.00011,2]
[380357699,1755703839011,-364.588034,0.00011,2]
[380357700,1755703839026,-284.593365,0.00011,2]
[380357701,1755703839036,-151.0,0.00011,2]
[380357702,1755703839046,-284.593365,0.00011,2]
[380357703,1755703839057,-6893.96887,0.00011,2]
[380357704,1755703839067,-151.0,0.00011,2]
[380357705,1755703839076,-284.593365,0.00011,2]
[380357706,1755703839086,-6893.96887,0.00011,2]
[380357707,1755703839097,-151.0,0.00011,2]
[380357708,1755703839109,-186.049325,0.00011,2]
[380357709,1755703839119,-6893.96887,0.00011,2]
[380357710,1755703839130,-524.014228,0.00011,2]
[380357711,1755703839141,-151.0,0.00011,2]
[380357712,1755703839151,-6893.96887,0.00011,2]
[380357713,1755703839160,-151.0,0.00011,2]
[380357714,1755703839170,-151.0,0.00011,2]
[380357715,1755703839179,-524.014228,0.00011,2]
[380357716,1755703839189,-151.0,0.00011,2]
[380357717,1755703839198,-400.047382,0.00011,2]
[380357718,1755703839208,-524.014228,0.00011,2]
[380357719,1755703839218,-487.891478,0.00011,2]
[380357720,1755703839228,-151.0,0.00011,2]
[380357721,1755703839237,-151.0,0.00011,2]
[380357722,1755703839247,-400.047382,0.00011,2]
[380357723,1755703839258,-524.014228,0.00011,2]
[380357724,1755703839268,-151.0,0.00011,2]
[380357725,1755703839278,-400.047382,0.00011,2]
[380357726,1755703839288,-487.891478,0.00011,2]
[380357727,1755703839303,-1000.0,0.0001105,2]
[380357728,1755703839314,-835.07500779,0.00011099,2]
[380357729,1755703839324,-300.0,0.00011285,2]
[380357731,1755703839334,-250.0,0.00011285,2]
[380357733,1755703839344,-495.57,0.0001129,2]
[380357735,1755703839355,-150.0,0.00011374,2]
[380357736,1755703839365,-1680.0,0.00011395,2]
[380357738,1755703839375,-1427.51,0.0001143,2]
[380357739,1755703839385,-169.4810603,0.00011449,2]
[380357740,1755703839395,-1000.0,0.00011521,2]
[380357741,1755703839405,-1000.0,0.00011521,2]
[380357742,1755703839416,-1003.43822729,0.00011521,2]
[380357743,1755703839426,-1000.0,0.00011521,2]
[380357744,1755703839436,-500.0,0.00011521,2]
[380357745,1755703839446,-1000.0,0.00011521,2]
[380357746,1755703839456,-729.50697533,0.00011521,2]
[380357747,1755703839466,-1097.64,0.00011564,2]
[380357748,1755703839477,-171.0,0.00011622,2]
[380357751,1755703839487,-411.0,0.00012034,2]
[380357754,1755703839497,-173.37,0.00012053,2]
[380357756,1755703839507,-1000.0,0.00012068,2]
[380357758,1755703839517,-1500.0,0.00012068,2]
[380357759,1755703839527,-1500.0,0.00012068,2]
[380357760,1755703839536,-729.18,0.000121,2]
[380357761,1755703839546,-835.07500776,0.00012122,2]
[380357762,1755703839556,-435.46592096,0.0001245,2]
[380357763,1755703839565,-480.0,0.00012534,2]
[380357764,1755703839575,-1803.55957022,0.00012616,2]
[380357765,1755703839584,-503.89816877,0.00012616,2]
[380357766,1755703839594,-835.07500776,0.00013344,2]
[380357767,1755703839603,-400.0,0.00013485,2]
[380357768,1755703839613,-169.48106029,0.00013519,2]
[380357769,1755703839623,-566.4459389,0.0001367,2]
[380357770,1755703839633,-162.39329532,0.00013679,2]
[380357771,1755703839644,-1000.0,0.00013699,2]
[380357772,1755703839655,-650.2,0.00013699,2]
[380357773,1755703839666,-151.0,0.00013699,2]
[380357774,1755703839676,-151.0,0.00013699,2]
[380357775,1755703839687,-2729.37239614,0.000137,2]
[380357776,1755703839699,-2729.37239614,0.000137,2]
[380357777,1755703839708,-2729.37239614,0.000137,2]
[380357778,1755703839718,-2729.37239614,0.000137,2]
[380357779,1755703839728,-2729.37239614,0.000137,2]
[380357780,1755703839738,-2729.37239614,0.000137,2]
[380357781,1755703839747,-2729.37239614,0.000137,2]
[380357782,1755703839762,-2729.37239614,0.000137,2]
[380357783,1755703839772,-2729.37239614,0.000137,2]
[380357784,1755703839782,-2729.37239614,0.000137,2]
[380357785,1755703839792,-2729.37239614,0.000137,2]
[380357786,1755703839802,-2729.37239614,0.000137,2]
[380357787,1755703839811,-2729.37239614,0.000137,2]
[380357788,1755703839821,-2729.37239614,0.000137,2]
[380357789,1755703839832,-2729.37239614,0.000137,2]
[380357790,1755703839842,-2729.37239614,0.000137,2]
[380357791,1755703839853,-2729.37239614,0.000137,2]
[380357792,1755703839863,-2729.37239614,0.000137,2]
[380357793,1755703839873,-2729.37239614,0.000137,2]
[380357794,1755703839883,-2729.37,0.000137,2]
[380357795,1755703839892,-1762.9025084,0.000137,2]
[380357796,1755703839904,-1762.9025084,0.000137,2]
[380357797,1755703839914,-1762.9025084,0.000137,2]
[380357798,1755703839924,-1762.9025084,0.000137,2]
[380357799,1755703839934,-1762.9025084,0.000137,2]
[380357800,1755703839945,-1762.9025084,0.000137,2]
[380357801,1755703839955,-1762.9025084,0.000137,2]
[380357802,1755703839965,-1762.9025084,0.000137,2]
[380357803,1755703839976,-1762.9025084,0.000137,2]
[380357804,1755703839986,-1762.9025084,0.000137,2]
[380357805,1755703839996,-1762.9025084,0.000137,2]
[380357806,1755703840006,-1762.9025084,0.000137,2]
[380357807,1755703840016,-1762.9025084,0.000137,2]
[380357808,1755703840026,-1762.9025084,0.000137,2]
[380357809,1755703840036,-1762.9025084,0.000137,2]
[380357810,1755703840046,-1762.9025084,0.000137,2]
[380357811,1755703840056,-1762.9025084,0.000137,2]
[380357812,1755703840066,-1762.9025084,0.000137,2]
[380357813,1755703840076,-1762.9025084,0.000137,2]
[380357814,1755703840086,-1762.9,0.000137,2]
[380357815,1755703840096,-158.44266566,0.000137,2]
[380357816,1755703840108,-158.44266566,0.000137,2]
[380357817,1755703840118,-158.44266566,0.000137,2]
[380357818,1755703840127,-158.44266566,0.000137,2]
[380357819,1755703840137,-158.44266566,0.000137,2]
[380357820,1755703840147,-158.44266566,0.000137,2]
[380357821,1755703840156,-158.44266566,0.000137,2]
[380357822,1755703840739,-158.44266566,0.000137,2]
[380357823,1755703840750,-158.44266566,0.000137,2]
[380357824,1755703840759,-158.44266566,0.000137,2]
[380357825,1755703840769,-158.44266566,0.000137,2]
[380357826,1755703840777,-158.44266566,0.000137,2]
[380357827,1755703840786,-158.44266566,0.000137,2]
[380357828,1755703840796,-158.44266566,0.000137,2]
[380357829,1755703840805,-158.44266566,0.000137,2]
[380357830,1755703840815,-158.44266566,0.000137,2]
[380357831,1755703840824,-158.44266566,0.000137,2]
[380357832,1755703840835,-158.44266566,0.000137,2]
[380357833,1755703840844,-158.44266566,0.000137,2]
[380357834,1755703840855,-158.44,0.000137,2]
[380357835,1755703840865,-2751.0,0.00013869,2]
[380357836,1755703840874,-7985.12,0.000139,2]
[380357837,1755703840884,-1338.0,0.00013967,2]
[380357838,1755703840893,-435.46592096,0.00014001,2]
[380357839,1755703840905,-303.0,0.00014037,2]
[380357840,1755703840915,-1033.28,0.00014504,2]
[380357841,1755703840925,-150.99,0.00014504,2]
[380357842,1755703840934,-150.99,0.00014504,2]
[380357843,1755703840944,-3274.05,0.00014504,2]
[380357844,1755703840953,-835.07500776,0.00014567,2]
[380357845,1755703840963,-151.0,0.00014591,2]
[380357846,1755703840972,-4040.23714109,0.00014748,2]
[380357847,1755703840983,-151.0,0.0001477,2]
[380357848,1755703840994,-151.0,0.00014936,2]
[380357849,1755703841003,-3973.32809249,0.00015,10]
[380357850,1755703841013,-71130.0718189,0.00015,2]
[380357851,1755703841022,-151.0,0.00015121,2]
[380357852,1755703841032,-500.0,0.00015184,2]
[380357853,1755703841042,-615.72,0.0001531,2]
[380357854,1755703841051,-435.46592096,0.00015552,2]
[380357855,1755703841061,-169.48106029,0.00015589,2]
[380357856,1755703841073,-835.07500776,0.00015789,2]
[380357857,1755703841083,-1167.6676729,0.00016,2]
[380357858,1755703841092,-1097.64,0.00016189,2]
[380357859,1755703841104,-162.39329532,0.00016459,2]
[380357860,1755703841114,-7985.12,0.000166,2]
[380357861,1755703841123,-500.0,0.0001674,2]